[Event "17th Paracin Open 2024"]
[Site "Paracin"]
[Date "2024.07.06"]
[Round "4.18"]
[White "Pasti, Aron"]
[Black "Jiang, Qinyu"]
[Result "1/2-1/2"]
[ECO "B33"]
[WhiteElo "2402"]
[BlackElo "2246"]
[Annotator "TA"]
[PlyCount "71"]
[EventDate "2024.07.02"]
[EventType "swiss"]
[EventCountry "SRB"]
[SourceTitle "playchess.com"]
[Source "ChessBase"]
[SourceQuality "1"]
[TimeControl "5400+30"]

{[%evp 19,71,0,8,10,12,0,14,25,23,28,22,27,24,26,17,24,17,4,36,4,16,14,177,171,188,181,200,178,112,160,148,57,59,45,52,47,58,52,35,0,0,0,0,0,0,0,0,0,0,0,0,0,0,0]} 1. e4 {[%emt 0:00:12]} c5 {[%emt 0:00:00]} 2. Nf3 {[%emt 0:00:12]} Nc6 {[%emt 0:00:01]} 3. d4 {[%emt 0:00:11]} cxd4 {[%emt 0:00:01]} 4. Nxd4 {[%emt 0:00:07]} Nf6 {[%emt 0:00:01]} 5. Nc3 {[%emt 0:00:08]} e5 {[%emt 0:00:00]} 6. Ndb5 {[%emt 0:00:08]} d6 {[%emt 0:00:01]} 7. Nd5 {[%emt 0:00:09]} Nxd5 {[%emt 0:00:01]} 8. exd5 {[%emt 0:00:07]} Nb8 {[%emt 0:00:02]} 9. a4 {[%emt 0:00:09]} Be7 {[%emt 0:00:01]} 10. Be2 {[%emt 0:00:05]} O-O {[%emt 0:00:04]} 11. Bd2 {[%emt 0:00:06]} Nd7 {[%emt 0:00:05]} 12. a5 {[%emt 0:00:24]} f5 {[%emt 0:00:03]} 13. O-O {[%emt 0:01:19]} a6 {[%emt 0:00:00]} 14. Na3 {[%emt 0:00:06][%cal Bb5a3,Ba3c4,Bc4b6][%mdl 32]} e4 {[%emt 0:00:01]} 15. Nc4 {[%emt 0:02:01]} Ne5 {[%emt 0:00:01]} 16. Nb6 {[%emt 0:00:06]} Rb8 {[%emt 0:00:01]} 17. f4 $36 {[%emt 0:00:06][%mdl 2048] Black is under pressure.} exf3 {[%emt 0:00:01]} 18. Bxf3 {[%emt 0:00:05]} f4 {[%emt 0:00:01]} 19. c4 {[%emt 0:13:39]} Bf6 {[%emt 0:06:00]} 20. Be4 {[%emt 0:02:47] Prevents Nd3} Ng4 $2 {[%emt 0:08:19]} (20... Bg4 $11 {and Black is okay.} 21. Qc2 f3) 21. Bxf4 $18 {[%emt 0:06:30]} (21. Rxf4 $2 Bd4+ 22. Kf1 (22. Kh1 $2 Rxf4 $19) 22... Nxh2+ 23. Ke2 Rxf4 (23... Bxb2 $2 24. Bxh7+ Kh8 25. Nxc8 $19) (23... Bg4+ $2 24. Rxg4 Nxg4 25. Qh1 $19) 24. Bxf4 Bg4+ (24... Bxb2 25. Nxc8 Bxa1 26. Bf5 $15) (24... Bxb6 $2 25. axb6 Bg4+ 26. Bf3 $19) 25. Kd3 Bxd1 $19) 21... Bxb2 {[%emt 0:00:06] [#]} 22. Bxh7+ $1 {[%emt 0:00:22][%mdl 512]} Kh8 {[%emt 0:00:50]} (22... Kxh7 23. Qc2+) 23. Ra2 {[%emt 0:24:16]} Qf6 {[%emt 0:06:23] [#]} (23... Be5 $18 24. Bxe5 Rxf1+ 25. Qxf1 Nxe5) 24. Rxb2 $1 $16 {[%emt 0:17:04][%mdl 512]} Qxb2 {[%emt 0:00:02] [#]} 25. Bb1 {[%emt 0:00:01] Some like it hot. This pair of bishops is nice.} (25. Bxd6 $2 Rxf1+ 26. Qxf1 Qd4+ 27. Kh1 Nf2+ 28. Kg1 Ne4+ 29. Kh1 Nxd6 $19) (25. Nxc8 $1 $16 Rbxc8 26. Bb1) 25... Bf5 $14 {[%emt 0:24:32]} 26. Bxf5 {[%emt 0:00:48]} (26. Bxd6 $2 Be4 $19) 26... Rxf5 {[%emt 0:00:34]} 27. Qxg4 {[%emt 0:06:31]} Qd4+ {[%emt 0:00:01]} 28. Kh1 {[%emt 0:00:01]} Rbf8 {[%emt 0:00:00][%cal Rf5f4]} 29. g3 {[%emt 0:00:22] Hoping for Re1.} (29. Nc8 $5 R5f6 (29... Rxf4 30. Qh5+ Kg8 31. Ne7#) 30. Ne7 $14) 29... g5 {[%emt 0:00:48] The position is equal.} 30. Nd7 {[%emt 0:04:35]} R8f7 {[%emt 0:00:20]} 31. Re1 {[%emt 0:00:48] Against Qe4+} Qf2 $1 {[%emt 0:05:36]} 32. Qh3+ {[%emt 0:19:02]} Kg7 {[%emt 0:00:52]} 33. Re6 {[%emt 0:00:02] Intending Qh6+ and mate.} ({Wrong is} 33. Rf1 $2 Qe2 34. Qg2 (34. Be5+ $2 dxe5 35. Rxf5 Qe4+ 36. Qg2 Qxf5 $19) 34... Qxg2+ (34... Qxc4 35. Nb6 $19) 35. Kxg2 Rxd7 $19 (35... gxf4 $2 36. Nb6 $19)) (33. Re8 $5 Qf3+ $8 34. Kg1 Qd1+ 35. Kg2 Qc2+ 36. Kh1 Qb1+ 37. Kg2 Qa2+ 38. Kh1 (38. Kf3 Rxf4+ 39. gxf4 Rxf4+ 40. Ke3 Qb3+ 41. Ke2 Qb2+ 42. Ke1 Qf2+ 43. Kd1 Rd4+ 44. Kc1 Rxc4+) 38... Qb1+ 39. Kg2 Qb2+ 40. Kg1 (40. Kf3 Rxf4+ 41. gxf4 Rxf4+ 42. Ke3 Qd4+ 43. Ke2 Rf2+ 44. Ke1 Qd2#) 40... Qa1+ 41. Kg2 Qa2+ 42. Kh1 (42. Kf3 Rxf4+ 43. gxf4 Rxf4+ 44. Ke3 Qb3+ 45. Ke2 Qb2+ 46. Ke1 Qf2+ 47. Kd1 Rd4+ 48. Kc1 Rxc4+) 42... Qa1+ 43. Kg2 Qa2+ $11) 33... Qf3+ {[%emt 0:01:30]} 34. Kg1 {[%emt 0:00:01]} Qd1+ {[%emt 0:00:06]} 35. Kg2 $1 {[%emt 0:00:04] White wants to mate with Qh6+.} Qc2+ {[%emt 0:00:10]} 36. Kg1 {[%emt 0:00:14] Weighted Error Value: White=0.07 (flawless) /Black=0.10 (very precise) .  Loses game:     	---       	Black=1      Mistake:       	White=1     	Black=1      Inaccurate:     	White=2     	Black=1      OK:         	White=7     	Black=9      Best:        	White=4     	Black=6      Strong:       	White=1     	Black=1      Brilliant:      	White=2     	---} 1/2-1/2

[Event "17th Paracin Open 2024"]
[Site "Paracin"]
[Date "2024.07.06"]
[Round "4.19"]
[White "Averin, Nikolay"]
[Black "Polschikov, Alexey"]
[Result "1-0"]
[ECO "B90"]
[WhiteElo "2250"]
[BlackElo "2376"]
[Annotator "TA"]
[PlyCount "115"]
[EventDate "2024.07.02"]
[EventType "swiss"]
[EventCountry "SRB"]
[SourceTitle "playchess.com"]
[Source "ChessBase"]
[SourceQuality "1"]
[TimeControl "5400+30"]

{[%evp 23,115,20,15,-5,-5,-23,14,0,16,0,0,0,0,0,0,0,0,-16,0,0,27,0,0,-68,-42,-123,-52,-84,-11,-36,-10,-19,-3,0,15,0,24,22,14,19,12,10,10,25,27,0,0,0,0,0,0,0,3,0,27,24,26,2,2,3,100,100,434,441,431,368,421,356,391,387,368,384,416,381,389,358,410,411,377,370,574,466,934,935,1185,1090,1227,1134,1290,1272,1541,1506,2143,2084]} 1. e4 {[%emt 1:31:00]} c5 {[%emt 1:31:00]} 2. Nf3 d6 {[%emt 0:00:30]} 3. d4 {[%emt 0:01:00]} cxd4 {[%emt 0:00:30]} 4. Nxd4 Nf6 {[%emt 0:00:30]} 5. Nc3 {[%emt 0:01:00]} a6 {[%emt 0:00:30]} 6. Be3 e5 {[%emt 0:00:30]} 7. Nb3 {[%emt 0:01:00]} Be6 {[%emt 0:00:30]} 8. f3 {[%emt 0:00:30]} h5 {[%emt 0:00:30]} 9. a4 {[%emt 0:00:30] B90: Sicilian Najdorf: Unusual White 6th moves, 6 Be3 Ng4 and 6 Be3 e5.} Nbd7 {[%emt 0:00:30]} 10. Be2 {[%emt 0:00:30]} Rc8 {[%emt 0:00:30]} 11. a5 {[%emt 0:00:30]} Qc7 {[%emt 0:00:30]} 12. O-O {[%emt 0:00:30]} Qc6 $146 {[%emt 0:00:30]} ({Predecessor:} 12... Be7 13. h3 Qc6 14. Nd2 d5 15. exd5 Bxd5 16. Bg5 Be6 17. f4 e4 18. f5 Bd5 {½-½ Mamedov,N (2460)-Areshchenko,A (2564) Moscow Aeroflot op-A 2004 (8)}) 13. Kh1 {[%emt 0:00:30]} Be7 {[%emt 0:00:30]} 14. Qe1 {[%emt 0:00:30]} g6 {[%emt 0:00:30]} 15. f4 {[%emt 0:00:30]} Nxe4 {[%emt 0:00:30]} 16. Bf3 {[%emt 0:00:30]} (16. fxe5 {looks sharper.} Nxc3 17. Nd4 Qd5 18. Bf3) 16... d5 {[%emt 0:00:30]} 17. Bxe4 {[%emt 0:00:30]} dxe4 {[%emt 0:00:30]} 18. fxe5 {[%emt 0:00:30]} Bxb3 {[%emt 0:00:30]} 19. cxb3 {[%emt 0:00:30]} O-O {[%emt 0:00:30]} 20. Ra4 {[%emt 0:00:30]} Nxe5 {[%emt 0:00:30]} 21. Rxe4 {[%emt 0:00:30]} Bd6 {[%emt 0:00:30]} 22. Bd4 {[%emt 0:00:30]} f6 {[%emt 0:00:30]} 23. Ref4 {[%emt 0:00:30]} (23. Re2 $11) 23... Bb8 {[%emt 0:00:30]} 24. Qe2 {[%emt 0:00:30]} ({Better is} 24. Re4 $1 $15) 24... Rce8 {[%emt 0:00:30]} (24... Ng4 $17 25. Re4 Nxh2) 25. Re4 {[%emt 0:00:30]} Kh7 {[%emt 0:00:30]} ({Black should try} 25... f5 $17 26. Re3 (26. Rxe5 Rxe5 27. Bxe5 Re8 $17) 26... Qd6 (26... Ng4 27. Re7 $17) 27. Bxe5 Rxe5 28. Rxe5 Qxe5 29. Qxe5 Bxe5) 26. h3 {[%emt 0:00:30]} (26. b4 {with more complications.} f5 27. Re3 Nf7 28. Re1) 26... Re6 {[%emt 0:00:30]} 27. b4 {[%emt 0:00:30]} Rfe8 {[%emt 0:00:30]} 28. b5 {[%emt 0:00:30]} Qd6 {[%emt 0:00:30]} 29. Rd1 {[%emt 0:00:30]} Nd3 {[%emt 0:00:30]} 30. Bg1 {[%emt 0:00:30]} Rxe4 {[%emt 0:00:30]} 31. Nxe4 {[%emt 0:00:30]} Rxe4 {[%emt 0:00:30]} 32. Qxd3 {[%emt 0:00:30]} (32. Qxe4 $2 {gets mated.} Nf2+ 33. Bxf2 Qh2#) 32... Qxd3 {[%emt 0:00:30]} 33. Rxd3 {[%emt 0:00:30]} Re7 $1 {[%emt 0:00:30]} 34. b6 {[%emt 0:00:30]} h4 {[%emt 0:00:30]} 35. Bf2 {[%emt 0:00:30]} g5 {[%emt 0:00:30]} 36. Kg1 {[%emt 0:00:30]} Kg6 {[%emt 0:00:30]} 37. b4 {[%emt 0:00:30]} f5 {[%emt 0:00:30]} 38. Bc5 {[%emt 0:00:30]} Rf7 {[%emt 0:00:30]} 39. Kf2 {[%emt 0:00:30]} g4 {[%emt 0:00:30]} 40. Rd8 {[%emt 0:00:30]} Bg3+ {[%emt 0:00:30]} 41. Ke2 Kg5 {[%emt 0:00:30] [#]} (41... Kf6 $11) 42. Rg8+ $1 $16 {[%emt 0:01:00]} Kh5 $2 {[%emt 0:00:30][%mdl 8192]} (42... Kf6 $16 {is more resistant.}) 43. Be3 $18 {[%emt 0:00:30]} f4 {[%emt 0:00:30]} 44. hxg4+ {[%emt 0:00:30]} Kh6 {[%emt 0:00:30]} 45. Bc5 {[%emt 0:00:30]} Kh7 {[%emt 0:00:30]} 46. Rg5 {[%emt 0:00:30]} Kh6 {[%emt 0:00:30]} 47. Rf5 {[%emt 0:00:30]} Rd7 {[%emt 0:00:30]} 48. Rf8 {[%emt 0:00:30]} Kg7 {[%emt 0:00:30]} 49. Re8 {[%emt 0:00:30]} Kf7 {[%emt 0:00:30]} 50. Re4 {[%emt 0:00:30]} Kf6 {[%emt 0:00:30]} 51. Rd4 {[%emt 0:00:30]} Rh7 {[%emt 0:00:30]} (51... f3+ {was called for.} 52. Kxf3 Rg7) 52. Kf3 $18 {[%emt 0:00:30]} h3 {[%emt 0:00:30]} (52... Be1 $142 53. Rd1 (53. Rxf4+ Kg6 $18) (53. Kxf4 Bg3+ 54. Ke4 Kg5 $18) 53... Bc3 54. Bd4+ (54. Kxf4 Be5+ 55. Ke3 Rg7 $18) 54... Bxd4) 53. gxh3 $18 {[%emt 0:00:30]} Rxh3 {[%emt 0:00:30]} 54. Rd7 {[%emt 0:00:30]} Ke5 {[%emt 0:00:30]} 55. Re7+ {[%emt 0:00:30]} Kd5 {[%emt 0:00:30]} 56. Rxb7 {[%emt 0:00:30]} Be1+ {[%emt 0:00:30]} 57. Kxf4 {[%emt 0:00:30]} Bd2+ {[%emt 0:00:30]} 58. Kf5 1-0

[Event "17th Paracin Open 2024"]
[Site "Paracin"]
[Date "2024.07.06"]
[Round "4.20"]
[White "Mungunzul, Bat-Erdene"]
[Black "Dvalishvili, Pavel S."]
[Result "1/2-1/2"]
[ECO "E16"]
[WhiteElo "2116"]
[BlackElo "2366"]
[Annotator "RC"]
[PlyCount "115"]
[EventDate "2024.07.02"]
[EventType "swiss"]
[EventCountry "SRB"]
[SourceTitle "playchess.com"]
[Source "ChessBase"]
[SourceQuality "1"]
[TimeControl "5400+30"]

1. d4 {[%emt 1:31:00]} Nf6 {[%emt 1:31:00]} 2. c4 {[%emt 0:00:30]} e6 {[%emt 0:00:30]} 3. Nf3 {[%emt 0:00:30]} b6 {[%emt 0:00:30]} 4. g3 {[%emt 0:00:30]} Bb7 {[%emt 0:00:30]} 5. Bg2 {[%emt 0:00:30]} Bb4+ {[%emt 0:00:30]} 6. Bd2 {[%emt 0:00:30]} Bxd2+ {[%emt 0:00:30]} 7. Qxd2 {[%emt 0:00:30]} O-O {[%emt 0:00:30]} 8. Nc3 {[%emt 0:00:30]} d5 {[%emt 0:00:30]} 9. cxd5 {[%emt 0:00:30]} Nxd5 {[%emt 0:00:30]} 10. Ne5 {[%emt 0:00:30]} Nd7 {[%emt 0:00:30]} 11. Nd3 {[%emt 0:00:30]} N7f6 {[%emt 0:00:30]} 12. O-O {[%emt 0:00:30]} Qe7 {[%emt 0:00:30]} 13. Rac1 {[%emt 0:00:30]} a5 {[%emt 0:00:30]} 14. Rc2 {[%emt 0:00:30]} c6 {[%emt 0:00:30]} 15. a3 {[%emt 0:00:30]} Rfd8 {[%emt 0:00:30]} 16. Na4 {[%emt 0:00:30]} Nd7 {[%emt 0:00:30]} 17. Rfc1 {[%emt 0:00:30]} Rab8 {[%emt 0:00:30]} 18. Re1 {[%emt 0:00:30]} Qd6 {[%emt 0:00:30]} 19. e4 {[%emt 0:00:30]} Ne7 {[%emt 0:00:30]} 20. Qe3 {[%emt 0:00:30]} Rbc8 {[%emt 0:00:30]} 21. Rec1 {[%emt 0:00:30]} Ba6 {[%emt 0:00:30]} 22. e5 {[%emt 0:00:30]} Qb8 {[%emt 0:00:30]} 23. Be4 {[%emt 0:00:30]} Bb5 {[%emt 0:00:30]} 24. b3 {[%emt 0:00:30]} Nd5 {[%emt 0:00:30]} 25. Qf3 {[%emt 0:00:30]} h6 {[%emt 0:00:30]} 26. Nab2 {[%emt 0:00:30]} Ne7 {[%emt 0:00:30]} 27. Nc4 {[%emt 0:00:30]} Bxc4 {[%emt 0:00:30]} 28. Rxc4 {[%emt 0:00:30]} c5 {[%emt 0:00:30]} 29. dxc5 {[%emt 0:00:30]} bxc5 {[%emt 0:00:30]} 30. Qe3 {[%emt 0:00:30]} Qxb3 {[%emt 0:00:30]} 31. R4c3 {[%emt 0:00:30]} Qb8 {[%emt 0:00:30]} 32. Nxc5 {[%emt 0:00:30]} Nxc5 {[%emt 0:00:30]} 33. Rxc5 {[%emt 0:00:30]} Rxc5 {[%emt 0:00:30]} 34. Rxc5 {[%emt 0:00:30]} a4 {[%emt 0:00:30]} 35. Kg2 {[%emt 0:00:30]} Rc8 {[%emt 0:00:30]} 36. Ra5 {[%emt 0:00:30]} Kf8 {[%emt 0:00:30]} 37. Qd4 {[%emt 0:00:30]} g5 {[%emt 0:00:30]} 38. Qxa4 {[%emt 0:00:30]} Kg7 {[%emt 0:00:30]} 39. Rb5 {[%emt 0:00:30]} Qc7 {[%emt 0:00:30]} 40. Qb4 {[%emt 0:00:30]} Ng6 {[%emt 0:00:30]} 41. a4 {[%emt 0:00:30]} Qc4 {[%emt 0:00:30]} 42. a5 {[%emt 0:00:30]} Qe2 {[%emt 0:00:30]} 43. Bf3 {[%emt 0:00:30]} Qa2 {[%emt 0:00:30]} 44. Qb2 {[%emt 0:00:30]} Qa4 {[%emt 0:00:30]} 45. Qb4 {[%emt 0:00:30]} Qa1 {[%emt 0:00:30]} 46. Qb2 {[%emt 0:00:30]} Qa4 47. a6 {[%emt 0:00:30]} Rc2 {[%emt 0:01:00]} 48. Rb4 {[%emt 0:00:30]} Qa2 {[%emt 0:00:30]} 49. Qxa2 Rxa2 50. Bb7 {[%emt 0:01:00]} Nxe5 {[%emt 0:01:00]} 51. Rd4 {[%emt 0:00:30]} g4 {[%emt 0:00:30]} 52. h3 {[%emt 0:00:30]} h5 53. h4 {[%emt 0:00:30]} Kf6 {[%emt 0:01:00]} 54. Kf1 {[%emt 0:00:30]} Ke7 {[%emt 0:00:30]} 55. Bc8 {[%emt 0:00:30]} Kf6 {[%emt 0:00:30]} 56. Bb7 {[%emt 0:00:30]} Ke7 {[%emt 0:00:30]} 57. Bc8 {[%emt 0:00:30]} Kf6 {[%emt 0:00:30]} 58. Bb7 {[%emt 0:00:30]} 1/2-1/2